[Event "UKR-ch Women Final 2018"]
[Site "Kiev"]
[Date "2018.12.19"]
[Round "8"]
[White "Berdnyk, Mariia"]
[Black "Babiy, Olga"]
[Result "1/2-1/2"]
[ECO "B48"]
[WhiteElo "2248"]
[BlackElo "2275"]
[Annotator "NA"]
[PlyCount "41"]
[EventDate "2018.12.11"]
[EventType "tourn"]
[EventCountry "UKR"]
[SourceTitle "playchess.com"]
[Source "ChessBase"]
[SourceQuality "1"]
[TimeControl "40/5400+30:1800+30"]

1. e4 {[%emt 0:00:00]} c5 {[%emt 0:00:00]} 2. Nf3 {[%emt 0:00:00]} e6 {[%emt 0:00:00]} 3. d4 {[%emt 0:00:00]} cxd4 {[%emt 0:00:02]} 4. Nxd4 {[%emt 0:00:00]} Nc6 {[%emt 0:00:06]} 5. Nc3 {[%emt 0:00:00]} Qc7 {[%emt 0:00:14]} 6. Be3 {[%emt 0:00:13]} a6 {[%emt 0:00:13]} 7. Bd3 {[%emt 0:00:38]} Nf6 {[%emt 0:00:31]} 8. O-O {[%emt 0:00:05]} Ne5 {[%emt 0:00:15]} 9. h3 {[%emt 0:08:15]} Bc5 {[%emt 0:00:17]} 10. f4 {[%emt 0:08:55]} Nc6 {[%emt 0:08:58]} 11. Nf5 {[%emt 0:05:12] LiveBook: 21 Games} Ne7 {[%emt 0:03:22]} 12. Nxg7+ {[%emt 0:00:50]} Kf8 {[%emt 0:00:11]} 13. Bxc5 {[%emt 0:00:27]} Qxc5+ {[%emt 0:00:08]} 14. Kh1 $1 {[%emt 0:00:12]} Kxg7 {[%emt 0:00:33]} 15. e5 {[%emt 0:00:06]} Nfd5 $2 {[%emt 0:01:36] [#]} (15... Ne8 $1 $11 {and Black has nothing to worry.}) 16. Ne4 $1 {[%emt 0:00:04]} ({Not} 16. Qh5 Nxc3 17. f5 (17. bxc3 $2 Kf8 $19) 17... exf5 $11) ({And not} 16. Nxd5 Qxd5 17. Qe1 (17. Qh5 Kf8 $17) 17... Kf8 $17) 16... Qc6 {[%emt 0:07:37]} 17. Qh5 {[%emt 0:04:45]} Nf5 {[%emt 0:12:46]} 18. Qg5+ {[%emt 0:25:25]} Kf8 {[%emt 0:00:07]} 19. Qd8+ {[%emt 0:00:06]} Kg7 {[%emt 0:00:03]} 20. Qg5+ {[%emt 0:00:06]} Kf8 {[%emt 0:00:06]} 21. Qd8+ $11 {[%emt 0:01:27]} 1/2-1/2

[Event "UKR-ch Women Final 2018"]
[Site "Kiev"]
[Date "2018.12.19"]
[Round "8"]
[White "Martynkova, Olena"]
[Black "Osmak, Iulija"]
[Result "1-0"]
[ECO "D11"]
[WhiteElo "2173"]
[BlackElo "2403"]
[Annotator "NA"]
[PlyCount "119"]
[EventDate "2018.12.11"]
[EventType "tourn"]
[EventCountry "UKR"]
[SourceTitle "playchess.com"]
[Source "ChessBase"]
[SourceQuality "1"]
[TimeControl "40/5400+30:1800+30"]

1. d4 {[%emt 0:00:00]} d5 {[%emt 0:00:00]} 2. c4 {[%emt 0:00:00]} c6 {[%emt 0:00:00]} 3. Nf3 {[%emt 0:00:44]} e6 {[%emt 0:00:00]} 4. g3 {[%emt 0:02:29]} dxc4 {[%emt 0:02:40]} 5. Bg2 {[%emt 0:02:06]} Nd7 {[%emt 0:00:31]} 6. O-O {[%emt 0:03:46]} Ngf6 {[%emt 0:00:14]} 7. a4 {[%emt 0:03:43]} a5 {[%emt 0:08:37]} 8. Nc3 {[%emt 0:07:17] E04: Open Catalan: 5 Nf3} Bd6 {[%emt 0:05:45]} 9. Bg5 {[%emt 0:10:14] LiveBook: 3 Games} O-O $146 ({Predecessor:} 9... h6 10. Bxf6 Qxf6 11. Ne4 Qe7 12. Qc2 Bc7 13. Qxc4 e5 14. Nc3 Qb4 15. Qd3 exd4 {0-1 (32) Yevseev,D (2532)-Dobrov,V (2511) Jurmala 2014}) 10. e4 {[%emt 0:11:13]} (10. Ne4 $11 Bc7 11. Nfd2) 10... e5 $1 {[%emt 0:08:07]} 11. Qe2 {[%emt 0:08:20]} h6 {[%emt 0:08:02]} 12. Bxf6 {[%emt 0:09:08]} Qxf6 {[%emt 0:01:28]} 13. d5 {[%emt 0:00:11]} Nb6 {[%emt 0:04:40]} 14. Nd2 {[%emt 0:01:47]} Qg6 {[%emt 0:11:36]} 15. Nxc4 {[%emt 0:05:48]} Bg4 {[%emt 0:02:05]} 16. Qd3 {[%emt 0:05:10]} Nxc4 {[%emt 0:02:25]} 17. Qxc4 {[%emt 0:00:03]} Rac8 {[%emt 0:00:42]} 18. Qb3 {[%emt 0:03:55]} Bb4 {[%emt 0:10:02]} 19. Na2 {[%emt 0:03:59]} Bc5 {[%emt 0:16:18]} 20. Qxb7 {[%emt 0:10:19]} Bd4 {[%emt 0:05:42]} 21. Nc3 {[%emt 0:02:12]} c5 {[%emt 0:00:57]} 22. Qb3 {[%emt 0:05:37]} h5 {[%emt 0:02:00]} 23. Nb5 {[%emt 0:02:19]} c4 {[%emt 0:03:47]} 24. Qc2 {[%emt 0:00:02]} Bb6 {[%emt 0:01:41]} 25. Kh1 {[%emt 0:00:11]} h4 {[%emt 0:00:18]} 26. f3 {[%emt 0:01:18]} Bd7 {[%emt 0:00:28]} 27. g4 {[%emt 0:00:29]} Qh6 {[%emt 0:01:17]} 28. h3 (28. Bh3 $14 Qg6 29. Na3) 28... Bxb5 {[%emt 0:04:48]} 29. axb5 {[%emt 0:00:41]} Qf4 {[%emt 0:00:20]} 30. Ra4 {[%emt 0:01:10]} Qg3 {[%emt 0:03:31]} 31. f4 {[%emt 0:00:34]} exf4 {[%emt 0:00:41]} 32. Rxc4 {[%emt 0:00:38]} Rxc4 {[%emt 0:02:12]} 33. Qxc4 {[%emt 0:00:02]} f3 {[%emt 0:01:48]} 34. Rxf3 {[%emt 0:00:06]} Qe5 {[%emt 0:00:02]} 35. Rf5 {[%emt 0:01:12]} Qxb2 {[%emt 0:00:29]} 36. e5 {[%emt 0:00:37]} g6 {[%emt 0:00:46]} 37. Rf6 {[%emt 0:00:27]} Bd4 {[%emt 0:00:31]} 38. d6 {[%emt 0:00:33]} Kg7 {[%emt 0:01:26]} 39. d7 {[%emt 0:00:34]} Bxe5 {[%emt 0:00:43]} 40. d8=Q {[%emt 0:00:00]} Bxf6 $4 {[%emt 0:00:00]} ({Black should play} 40... Rxd8 $14 41. Qxf7+ Kh8) 41. Qdd5 {[%emt 0:07:48]} a4 {[%emt 0:03:42]} 42. Bf1 {[%emt 0:14:51]} a3 {[%emt 0:05:10]} 43. g5 {[%emt 0:02:02]} Be5 {[%emt 0:01:10]} 44. Qe2 {[%emt 0:00:52]} Re8 {[%emt 0:02:57]} 45. Qxb2 {[%emt 0:01:36]} axb2 {[%emt 0:00:07]} 46. Bd3 {[%emt 0:00:25]} Bc3 {[%emt 0:01:07]} 47. Qb3 {[%emt 0:03:09]} Re1+ {[%emt 0:01:26]} 48. Kg2 {[%emt 0:00:04]} Bd4 {[%emt 0:01:18]} 49. Qb4 {[%emt 0:00:22]} Rg1+ {[%emt 0:00:38]} 50. Kh2 {[%emt 0:00:39]} Be3 {[%emt 0:01:17]} 51. Qxb2+ {[%emt 0:01:15]} Kg8 {[%emt 0:00:04]} 52. Qe5 {[%emt 0:01:52]} Re1 {[%emt 0:01:10]} 53. Qe8+ {[%emt 0:00:49]} Kg7 {[%emt 0:00:06]} 54. Qe5+ {[%emt 0:00:15]} Kg8 {[%emt 0:00:04]} 55. Qf6 {[%emt 0:00:25]} Rd1 {[%emt 0:01:22]} 56. Bc4 {[%emt 0:00:50]} Rd2+ {[%emt 0:00:18]} 57. Kh1 {[%emt 0:00:04]} Rd1+ {[%emt 0:00:19]} 58. Kg2 {[%emt 0:00:22]} Rd2+ {[%emt 0:00:52]} 59. Kf3 {[%emt 0:00:54]} Rf2+ {[%emt 0:00:31]} 60. Kxe3 {[%emt 0:00:06]} 1-0

[Event "UKR-ch Women Final 2018"]
[Site "Kiev"]
[Date "2018.12.20"]
[Round "9"]
[White "Gaponenko, Inna"]
[Black "Berdnyk, Mariia"]
[Result "1-0"]
[ECO "B78"]
[WhiteElo "2420"]
[BlackElo "2248"]
[Annotator "ChessBase"]
[PlyCount "108"]
[EventDate "2018.12.11"]
[EventType "tourn"]
[EventCountry "UKR"]
[SourceTitle "playchess.com"]
[Source "ChessBase"]
[SourceQuality "1"]
[TimeControl "40/5400+30:1800+30"]

1. e4 {[%emt 0:00:50]} c5 {[%emt 0:00:00]} 2. Nf3 {[%emt 0:00:04]} d6 {[%emt 0:00:00]} 3. d4 {[%emt 0:00:05]} cxd4 {[%emt 0:00:00]} 4. Nxd4 {[%emt 0:00:05]} Nf6 {[%emt 0:00:00]} 5. Nc3 {[%emt 0:00:05]} g6 {[%emt 0:00:00]} 6. Be3 {[%emt 0:00:06]} Bg7 {[%emt 0:00:00]} 7. f3 {[%emt 0:00:05]} O-O {[%emt 0:00:00]} 8. Qd2 {[%emt 0:00:07]} Nc6 {[%emt 0:00:00]} 9. Bc4 {[%emt 0:00:06]} Bd7 {[%emt 0:00:00]} 10. O-O-O {[%emt 0:00:09]} Rc8 {[%emt 0:00:01]} 11. Bb3 {[%emt 0:00:05]} Nxd4 {[%emt 0:00:03]} 12. Bxd4 {[%emt 0:00:08]} b5 {[%emt 0:00:03]} 13. Bxa7 {[%emt 0:11:02]} b4 {[%emt 0:06:59]} 14. Nd5 {[%emt 0:00:57]} Nxd5 {[%emt 0:00:21]} 15. exd5 {[%emt 0:00:06]} Qa5 16. Qe3 {[%emt 0:45:55]} Ba4 {[%emt 0:21:44]} 17. Bd4 {[%emt 0:02:34]} Bxd4 18. Rxd4 {[%emt 0:01:51]} Rc5 {[%emt 0:12:25]} 19. Kb1 {[%emt 0:21:04]} Ra8 {[%emt 0:09:04]} 20. Rhd1 Bxb3 {[%emt 0:10:21]} 21. Qxb3 {[%emt 0:07:02]} Rb5 {[%emt 0:00:17]} 22. h4 {[%emt 0:01:27]} Qa7 {[%emt 0:02:45]} 23. a3 {[%emt 0:02:37]} Rab8 {[%emt 0:00:53]} 24. Rxb4 {[%emt 0:00:42]} Rxb4 {[%emt 0:00:15]} 25. axb4 {[%emt 0:00:04]} Qf2 26. g4 {[%emt 0:03:02]} Qxh4 {[%emt 0:00:41]} 27. b5 {[%emt 0:00:38]} Qf2 {[%emt 0:02:41]} 28. Qd3 {[%emt 0:01:37]} Ra8 {[%emt 0:01:44]} 29. Qe4 Qa7 {[%emt 0:07:03]} 30. c3 {[%emt 0:01:14]} Rb8 {[%emt 0:00:20]} 31. c4 {[%emt 0:01:05]} Ra8 {[%emt 0:00:36]} 32. Qd4 {[%emt 0:00:29]} Qa2+ {[%emt 0:00:24]} 33. Kc2 {[%emt 0:00:03]} Rc8 {[%emt 0:03:32]} 34. Kc3 {[%emt 0:00:09]} Qa4 {[%emt 0:03:56]} 35. b6 {[%emt 0:00:06]} Qa5+ {[%emt 0:03:54]} 36. Kc2 {[%emt 0:01:06]} Rb8 {[%emt 0:00:48]} 37. b3 {[%emt 0:00:22]} Qa2+ {[%emt 0:02:17]} 38. Kc3 {[%emt 0:01:07]} Qa5+ {[%emt 0:03:43]} 39. Kb2 {[%emt 0:00:30]} Qxb6 {[%emt 0:01:07]} 40. Qxb6 {[%emt 0:00:00]} Rxb6 {[%emt 0:00:00]} 41. Ra1 {[%emt 0:01:21]} Rb7 {[%emt 0:09:19]} 42. Kc3 {[%emt 0:00:30]} Kg7 {[%emt 0:00:35]} 43. b4 {[%emt 0:00:30]} h5 44. gxh5 {[%emt 0:00:30]} gxh5 {[%emt 0:03:21]} 45. c5 {[%emt 0:00:30]} dxc5 {[%emt 0:00:54]} 46. bxc5 {[%emt 0:00:30]} Kf6 {[%emt 0:01:34]} 47. c6 {[%emt 0:00:32]} Rb8 48. Kd4 {[%emt 0:05:13]} h4 {[%emt 0:17:56]} 49. Kc5 {[%emt 0:00:30]} h3 50. c7 {[%emt 0:05:23]} Rg8 {[%emt 0:04:36]} 51. Rh1 {[%emt 0:04:49]} Rg2 {[%emt 0:00:37]} 52. Rxh3 Rc2+ {[%emt 0:01:08]} 53. Kb6 {[%emt 0:01:00]} Ke5 {[%emt 0:01:33]} 54. Rh8 {[%emt 0:01:26]} Kxd5 1-0

[Event "UKR-ch Women Final 2018"]
[Site "Kiev"]
[Date "2018.12.20"]
[Round "9"]
[White "Rakhmangulova, Anastasiya"]
[Black "Martynkova, Olena"]
[Result "1-0"]
[ECO "B49"]
[WhiteElo "2233"]
[BlackElo "2173"]
[Annotator "NA"]
[PlyCount "187"]
[EventDate "2018.12.11"]
[EventType "tourn"]
[EventCountry "UKR"]
[SourceTitle "playchess.com"]
[Source "ChessBase"]
[SourceQuality "1"]
[TimeControl "40/5400+30:1800+30"]

1. e4 {[%emt 0:00:00]} c5 {[%emt 0:00:00]} 2. Nf3 {[%emt 0:00:00]} e6 {[%emt 0:00:08]} 3. d4 {[%emt 0:00:00]} cxd4 {[%emt 0:00:18]} 4. Nxd4 {[%emt 0:00:00]} Nc6 {[%emt 0:00:15]} 5. Nc3 {[%emt 0:00:00]} Qc7 {[%emt 0:00:35]} 6. Be3 {[%emt 0:00:00]} a6 {[%emt 0:04:41]} 7. Be2 {[%emt 0:00:01]} b5 {[%emt 0:14:02]} 8. Nxc6 {[%emt 0:01:49]} dxc6 {[%emt 0:04:25]} 9. O-O {[%emt 0:02:15]} Nf6 {[%emt 0:05:31]} 10. f4 {[%emt 0:12:12]} Be7 {[%emt 0:03:33] B49: Sicilian: Taimanov: 5 Nc3 Qc7 6 Be3 a6 7 Be2} 11. e5 {[%emt 0:07:40]} Nd5 {[%emt 0:01:10]} 12. Nxd5 {[%emt 0:01:03]} cxd5 {[%emt 0:00:13] LiveBook: 13 Games} 13. Qd4 $146 {[%emt 0:00:41]} ({Predecessor:} 13. c3 Bd7 14. a3 Rc8 15. Bd4 Bc5 16. Qd2 Bxd4+ 17. cxd4 Qc2 18. Rfd1 Qxd2 19. Rxd2 {½-½ (30) Sokolov,A (2516)-Charnushevich,A (2477) Switzerland 2017}) 13... O-O {[%emt 0:06:55]} 14. Bd3 {[%emt 0:09:04]} Bd7 {[%emt 0:06:39]} 15. b4 {[%emt 0:03:56]} a5 {[%emt 0:18:13]} 16. a3 {[%emt 0:05:16]} Rfc8 {[%emt 0:03:03]} 17. Rfb1 {[%emt 0:06:47]} Qb7 {[%emt 0:08:38]} 18. Rb3 {[%emt 0:10:07]} Ra6 {[%emt 0:15:28]} 19. Qb2 {[%emt 0:08:50]} axb4 {[%emt 0:08:10]} 20. axb4 {[%emt 0:00:05]} Ra4 {[%emt 0:00:18]} 21. c3 {[%emt 0:10:40]} Bd8 {[%emt 0:03:10]} 22. Rba3 {[%emt 0:07:18]} Bb6 {[%emt 0:00:41]} 23. Qf2 {[%emt 0:00:11]} (23. Bxb6 $11 Qxb6+ 24. Qf2) 23... Bxe3 {[%emt 0:03:06]} (23... Rxc3 $5 24. Rxa4 bxa4 25. Bxh7+ Kxh7 26. Bxb6 Kg8 $15) 24. Qxe3 {[%emt 0:00:02]} Rca8 {[%emt 0:00:44]} 25. Rxa4 {[%emt 0:00:50]} bxa4 {[%emt 0:00:34]} 26. Ra3 {[%emt 0:03:15]} Bb5 {[%emt 0:00:33]} 27. Kf2 {[%emt 0:01:21]} g6 {[%emt 0:00:32]} 28. Qd4 {[%emt 0:01:09]} (28. Bc2 $15) 28... Bxd3 {[%emt 0:00:25]} 29. Qxd3 {[%emt 0:00:02]} Qb6+ {[%emt 0:00:34]} 30. Qe3 $11 {[%emt 0:01:38] was the only way to keep the balance.} Qb5 {[%emt 0:00:14]} (30... Qb7 31. g3) 31. Qe2 {[%emt 0:03:23]} Qb6+ {[%emt 0:00:20]} (31... Qd7 $17) 32. Kg3 {[%emt 0:00:34]} h5 {[%emt 0:01:08]} 33. Qf2 {[%emt 0:04:01]} Qb5 {[%emt 0:00:11]} 34. Qe3 {[%emt 0:01:03]} Qf1 {[%emt 0:00:53]} 35. Qd2 {[%emt 0:01:12]} Qc4 {[%emt 0:00:26]} 36. Kf2 {[%emt 0:01:06]} Kg7 {[%emt 0:00:31]} 37. g3 {[%emt 0:00:26]} (37. Qd4 $17 Qa6 38. Qd1) 37... Qb5 {[%emt 0:00:27]} 38. Qd4 {[%emt 0:01:57]} Kg8 {[%emt 0:00:32]} 39. h3 $1 $11 Rc8 {[%emt 0:00:31]} 40. Qd1 {[%emt 0:00:00]} Ra8 $2 {[%emt 0:00:00]} ({Better is} 40... Kg7 $19 41. Kg2 Qc4) 41. g4 $2 {[%emt 0:06:47]} h4 {[%emt 0:08:18]} (41... hxg4 $19 42. hxg4 Rc8) 42. Qd2 {[%emt 0:05:17]} Rc8 {[%emt 0:03:02]} 43. f5 $1 {[%emt 0:02:58]} exf5 {[%emt 0:02:44]} 44. gxf5 {[%emt 0:00:09]} Rc4 {[%emt 0:01:56]} 45. fxg6 {[%emt 0:19:07]} Qb6+ {[%emt 0:01:59]} 46. Kf1 {[%emt 0:00:04]} Qxg6 {[%emt 0:10:54]} 47. Rxa4 $2 {[%emt 0:02:28] [#]} (47. Qg2 $11) 47... Qf5+ $2 {[%emt 0:00:51]} ({Black should try} 47... Re4 $1 $19 48. e6 Rxe6) 48. Kg1 {[%emt 0:00:08]} Rc6 {[%emt 0:01:10]} 49. Ra8+ {[%emt 0:00:36]} Kg7 {[%emt 0:00:21]} 50. e6 $1 {[%emt 0:00:26]} Rxe6 {[%emt 0:01:07]} 51. Qd4+ {[%emt 0:00:03]} Rf6 {[%emt 0:00:31]} 52. Kh2 {[%emt 0:01:04]} Qf2+ {[%emt 0:03:04]} 53. Qxf2 {[%emt 0:00:26]} Rxf2+ {[%emt 0:00:02]} 54. Kg1 {[%emt 0:00:04]} Rc2 {[%emt 0:00:56]} 55. Ra3 {[%emt 0:01:12]} Kg6 {[%emt 0:00:15]} 56. Rb3 {[%emt 0:00:10]} Ra2 {[%emt 0:00:47]} 57. b5 {[%emt 0:00:05]} Ra7 {[%emt 0:00:07]} 58. b6 {[%emt 0:00:48]} Rb7 {[%emt 0:00:01]} 59. Kf2 {[%emt 0:00:04]} Kf5 {[%emt 0:00:24]} 60. Ke3 {[%emt 0:00:04]} Ke5 {[%emt 0:01:00]} 61. Rb5 {[%emt 0:00:04]} Kd6 {[%emt 0:01:20]} 62. Kd4 {[%emt 0:00:45]} Kc6 {[%emt 0:00:02]} 63. Rxd5 {[%emt 0:00:23]} Rxb6 {[%emt 0:01:11]} 64. Rh5 {[%emt 0:01:59]} Rb1 {[%emt 0:00:28]} 65. Rxh4 {[%emt 0:00:09]} Rf1 {[%emt 0:00:15]} 66. Rh6+ {[%emt 0:00:57]} f6 $16 {[%emt 0:00:43]} 67. Rg6 {[%emt 0:00:41]} (67. c4 $16) 67... Rf4+ {[%emt 0:00:15]} 68. Ke3 {[%emt 0:00:06]} Rf1 {[%emt 0:00:37]} 69. Rg3 {[%emt 0:00:14]} Kd5 {[%emt 0:00:11]} 70. Rf3 {[%emt 0:00:18]} Rh1 {[%emt 0:01:01]} 71. Kf4 {[%emt 0:00:03]} Ke6 {[%emt 0:00:15]} 72. Re3+ {[%emt 0:01:08]} Kf7 {[%emt 0:00:38]} 73. Ke4 {[%emt 0:00:27]} Rc1 {[%emt 0:00:36]} 74. Kd4 {[%emt 0:00:59]} f5 {[%emt 0:00:17]} 75. Ke5 {[%emt 0:00:39]} Rf1 {[%emt 0:00:26]} 76. c4 {[%emt 0:00:18]} Rc1 {[%emt 0:00:47]} 77. Kd4 {[%emt 0:00:50]} Kf6 {[%emt 0:00:20]} 78. c5 {[%emt 0:00:09]} Kg5 {[%emt 0:00:41]} 79. Rc3 {[%emt 0:00:27]} Rd1+ {[%emt 0:00:02]} 80. Ke3 {[%emt 0:00:15]} Rh1 {[%emt 0:00:57]} 81. Kf2 {[%emt 0:00:10]} Rh2+ {[%emt 0:00:28]} 82. Kg1 {[%emt 0:00:24]} Rd2 {[%emt 0:00:14]} 83. c6 {[%emt 0:00:04]} Rd8 {[%emt 0:00:05]} 84. c7 {[%emt 0:00:04]} Rc8 {[%emt 0:00:02]} 85. Kg2 {[%emt 0:00:30]} Kf4 {[%emt 0:01:06]} 86. Kf2 {[%emt 0:00:55]} Ke4 {[%emt 0:01:03]} 87. h4 {[%emt 0:00:32]} Kd4 {[%emt 0:00:30]} 88. Rc1 {[%emt 0:00:10]} Ke5 {[%emt 0:00:25]} 89. Kf3 {[%emt 0:00:12]} Kd6 {[%emt 0:00:34]} 90. h5 {[%emt 0:00:29]} Kd7 {[%emt 0:00:33]} 91. h6 {[%emt 0:00:14]} f4 {[%emt 0:00:29]} 92. h7 {[%emt 0:00:25]} Ke7 {[%emt 0:00:32]} 93. h8=Q {[%emt 0:00:27]} Rxh8 {[%emt 0:00:05]} 94. c8=Q {[%emt 0:00:04]} 1-0

[Event "UKR-ch Women Final 2018"]
[Site "Kiev"]
[Date "2018.12.20"]
[Round "9"]
[White "Dolzhykova, Kateryna"]
[Black "Doluhanova, Evgeniya"]
[Result "1/2-1/2"]
[ECO "B90"]
[WhiteElo "2161"]
[BlackElo "2367"]
[Annotator "ChessBase"]
[PlyCount "91"]
[EventDate "2018.12.11"]
[EventType "tourn"]
[EventCountry "UKR"]
[SourceTitle "playchess.com"]
[Source "ChessBase"]
[SourceQuality "1"]
[TimeControl "40/5400+30:1800+30"]

1. e4 {[%emt 0:00:00]} c5 {[%emt 0:00:50]} 2. Nf3 {[%emt 0:00:00]} d6 {[%emt 0:00:05]} 3. d4 {[%emt 0:00:52]} cxd4 {[%emt 0:00:32]} 4. Nxd4 {[%emt 0:00:08]} Nf6 {[%emt 0:00:33]} 5. Nc3 {[%emt 0:00:06]} a6 {[%emt 0:00:08]} 6. h3 {[%emt 0:01:19]} e5 {[%emt 0:00:20]} 7. Nb3 {[%emt 0:02:59]} Be6 {[%emt 0:05:31]} 8. g4 {[%emt 0:03:58]} d5 {[%emt 0:08:32]} 9. exd5 {[%emt 0:31:17]} Nxd5 {[%emt 0:00:32]} 10. Bg2 {[%emt 0:00:07]} Nxc3 {[%emt 0:03:32]} 11. Qxd8+ {[%emt 0:00:07]} Kxd8 {[%emt 0:00:04]} 12. bxc3 {[%emt 0:00:06]} Kc7 {[%emt 0:04:43]} 13. f4 {[%emt 0:03:38]} f6 {[%emt 0:02:21]} 14. fxe5 {[%emt 0:05:11]} fxe5 {[%emt 0:01:12]} 15. Na5 {[%emt 0:02:47]} Nc6 {[%emt 0:13:45]} 16. Bxc6 {[%emt 0:00:09]} bxc6 {[%emt 0:00:06]} 17. Rb1 {[%emt 0:00:02]} Rb8 {[%emt 0:29:42]} 18. Rxb8 {[%emt 0:01:41]} Kxb8 {[%emt 0:00:06]} 19. Nxc6+ {[%emt 0:00:28]} Kc7 {[%emt 0:04:03]} 20. Nxe5 {[%emt 0:00:13]} Bxa2 {[%emt 0:03:58]} 21. Be3 {[%emt 0:10:02]} Bd6 {[%emt 0:06:40]} 22. Nd3 {[%emt 0:00:05]} Rf8 {[%emt 0:07:41]} 23. Ke2 {[%emt 0:03:01]} Bc4 {[%emt 0:00:31]} 24. Ra1 {[%emt 0:03:09]} g6 {[%emt 0:00:28]} 25. Ra4 {[%emt 0:00:50]} Bb5 {[%emt 0:00:09]} 26. Re4 {[%emt 0:02:41]} a5 {[%emt 0:01:57]} 27. c4 {[%emt 0:00:43]} Bc6 {[%emt 0:01:35]} 28. Re6 {[%emt 0:03:20]} Re8 {[%emt 0:02:29]} 29. Rf6 {[%emt 0:01:24]} a4 {[%emt 0:01:04]} 30. c5 {[%emt 0:02:05]} Be7 {[%emt 0:00:05]} 31. Rf7 {[%emt 0:00:40]} a3 {[%emt 0:01:11]} 32. Kd2 {[%emt 0:02:45]} a2 {[%emt 0:00:43]} 33. Bd4 {[%emt 0:00:01]} Kc8 {[%emt 0:00:43]} 34. Kc1 {[%emt 0:06:39]} h5 {[%emt 0:00:21]} 35. Kb2 {[%emt 0:01:32]} hxg4 {[%emt 0:00:23]} 36. hxg4 {[%emt 0:00:06]} g5 {[%emt 0:00:43]} 37. Nb4 {[%emt 0:00:58]} Bd7 {[%emt 0:00:16]} 38. Nd5 {[%emt 0:07:08]} Bd8 {[%emt 0:00:30]} 39. Nb6+ {[%emt 0:00:43]} Bxb6 {[%emt 0:00:24]} 40. cxb6 {[%emt 0:00:00]} Re1 {[%emt 0:00:00]} 41. Rf8+ {[%emt 0:10:10]} Re8 {[%emt 0:01:43]} 42. Rf3 {[%emt 0:04:32]} Re4 {[%emt 0:06:37]} 43. Rc3+ {[%emt 0:00:08]} Kb8 {[%emt 0:00:06]} 44. Bc5 {[%emt 0:08:47]} Be6 {[%emt 0:05:43]} 45. Re3 {[%emt 0:02:19]} Rxe3 {[%emt 0:04:47]} 46. Bxe3 {[%emt 0:00:03]} 1/2-1/2